bitfinex-derivatives/quotes_SOLF0:USTF0_20250623
["timestamp","ask_amount","ask_price","bid_price","bid_amount"]
[1750715262647,43.8846,141.48,141.47,7.0649]
[1750715262648,36.82,141.48,141.47,7.0649]
[1750715263725,7.063,141.51,141.48,7.0639]
[1750715264025,5.87562099,141.5,141.48,7.0639]
[1750715264214,7.063,141.51,141.48,7.0639]
[1750715264422,5.87367027,141.5,141.48,7.0639]
[1750715264622,5.87367027,141.5,141.45,4.93852256]
[1750715264915,5.87337671,141.51,141.45,4.93852256]
[1750715265128,43.8827,141.52,141.49,7.0639]
[1750715265321,5.87351497,141.51,141.49,7.0639]
[1750715265628,5.87229843,141.51,141.49,7.0639]
[1750715266221,43.8827,141.52,141.49,7.0639]
[1750715266424,5.87437051,141.51,141.49,7.0639]
[1750715267329,12.93737051,141.51,141.49,7.0639]
[1750715267626,5.87437051,141.51,141.49,7.0639]
[1750715268728,36.82,141.52,141.5,7.0634]
[1750715268928,36.82,141.52,141.47,4.93852256]
[1750715269227,36.82,141.52,141.51,7.0629]
[1750715269629,36.82,141.55,141.52,7.0619]
[1750715269926,36.82,141.55,141.49,4.93852256]
[1750715269927,5.88691721,141.54,141.49,4.93852256]
[1750715270130,36.82,141.55,141.53,7.0616]
[1750715271122,36.82,141.55,141.5,2.3663]
[1750715271325,36.82,141.55,141.51,4.93852256]
[1750715271520,36.82,141.58,141.51,4.93852256]
[1750715271723,5.88630348,141.57,141.51,4.93852256]
[1750715271922,36.82,141.58,141.51,4.93852256]
[1750715272119,5.88612587,141.57,141.51,4.93852256]
[1750715272322,46.58737607,141.58,141.55,7.0606]
[1750715272522,5.8858824,141.57,141.51,4.93852256]
[1750715272727,36.82,141.58,141.56,7.0602]
[1750715273732,2.70836633,141.6,141.54,36.82]
[1750715274034,5.88456412,141.59,141.55,4.93852256]
[1750715274232,7.0584,141.6,141.58,7.0594]
[1750715274434,5.90434545,141.59,141.58,7.0594]
[1750715274932,5.90434545,141.6,141.58,7.0594]
[1750715275239,7.058,141.61,141.58,7.0594]
[1750715275442,5.90111917,141.6,141.58,7.0594]
[1750715275634,36.82,141.62,141.55,4.93852256]
[1750715275844,5.90114537,141.61,141.55,4.93852256]
[1750715276032,5.90114537,141.6,141.55,4.93852256]
[1750715276325,7.0581,141.61,141.55,4.93852256]
[1750715276531,5.89899727,141.6,141.55,4.93852256]
[1750715276729,7.0581,141.61,141.57,7.0595]
[1750715277034,5.89899762,141.6,141.57,7.0595]
[1750715277236,7.0581,141.61,141.57,7.0595]
[1750715277433,12.95588421,141.6,141.57,7.0595]
[1750715277624,12.95588421,141.6,141.54,39.1122]
[1750715277625,5.89738677,141.59,141.54,2.2922]
[1750715277937,7.0607,141.56,141.54,2.2922]
[1750715278254,36.8,141.56,141.5,39.1663]
[1750715278435,36.8,141.56,141.5,2.3663]
[1750715278835,5.92082277,141.55,141.5,2.3663]
[1750715279032,36.8,141.56,141.5,2.3663]
[1750715279231,5.92056629,141.55,141.52,7.0624]
[1750715279430,36.8,141.56,141.52,7.0624]
[1750715279635,5.92120212,141.55,141.53,7.0616]
[1750715279833,36.8,141.56,141.53,7.0616]
[1750715280937,43.8608,141.56,141.53,7.0616]
[1750715282541,7.061,141.55,141.52,7.0622]
[1750715282845,36.8,141.56,141.5,2.3663]
[1750715283638,36.8,141.56,141.51,4.93852256]
[1750715283939,36.76,141.59,141.51,41.69852256]
[1750715284146,5.90125164,141.58,141.56,7.0603]
[1750715284341,5.90125164,141.57,141.56,7.0603]
[1750715284642,5.89981126,141.58,141.57,7.0597]
[1750715285140,36.76,141.59,141.54,4.93852256]
[1750715285337,36.76,141.59,141.55,2.2841]
[1750715285536,36.76,141.59,141.58,7.0594]
[1750715286839,42.6570791,141.59,141.58,7.0594]
[1750715287242,36.76,141.59,141.58,7.0594]
[1750715287640,43.8176,141.62,141.6,7.0583]
[1750715287948,5.89588057,141.61,141.6,7.0583]
[1750715288149,12.95408057,141.61,141.58,7.059]
[1750715288439,7.0582,141.61,141.58,7.059]
[1750715288672,43.836,141.62,141.56,2.2234]
[1750715288845,43.836,141.62,141.6,7.0582]
[1750715289150,43.836,141.62,141.57,4.93852256]
[1750715289650,43.836,141.62,141.56,2.2234]
[1750715289651,43.836,141.62,141.61,7.0579]
[1750715290855,43.836,141.62,141.6,7.0581]
[1750715291647,43.836,141.62,141.56,2.2234]
[1750715292355,43.836,141.62,141.57,7.0596]
[1750715292851,7.0581,141.61,141.58,7.0591]
[1750715293756,43.836,141.62,141.56,2.2234]
[1750715294455,43.836,141.62,141.6,7.0581]
[1750715294653,43.836,141.62,141.56,2.2234]
[1750715294957,43.836,141.62,141.57,4.93852256]
[1750715295753,43.836,141.62,141.6,7.0581]
[1750715296859,50.8937,141.62,141.6,7.0581]
[1750715297761,43.836,141.62,141.6,7.0581]
[1750715298065,43.836,141.62,141.57,4.93852256]
[1750715298455,50.8936,141.62,141.59,7.0587]
[1750715298659,43.836,141.62,141.57,4.93852256]
[1750715299261,43.836,141.62,141.61,7.0579]
[1750715302860,7.076,141.64,141.56,38.9834]
[1750715303163,7.076,141.62,141.58,4.93852256]
[1750715303561,7.076,141.62,141.61,7.0575]
[1750715304368,7.076,141.63,141.62,7.0574]
[1750715304663,12.99995356,141.63,141.62,7.0574]
[1750715305465,7.076,141.64,141.63,7.0569]
[1750715305666,13.00421847,141.64,141.63,7.0569]
[1750715308867,7.076,141.65,141.64,7.0564]
[1750715309170,13.00962267,141.65,141.64,7.0564]
[1750715313462,5.93362267,141.65,141.64,7.0564]
[1750715313767,3.58612781,141.66,141.65,7.0559]
[1750715313968,9.55630611,141.66,141.65,7.0559]
[1750715314671,6.53749423,141.69,141.63,4.93852256]
[1750715314871,14.40483025,141.7,141.63,4.93852256]
[1750715315167,21.45843025,141.7,141.63,4.93852256]
[1750715315867,21.45843025,141.7,141.67,7.0546]
[1750715316171,9.2597712,141.7,141.62,4.7495]
[1750715316357,14.40604538,141.7,141.68,7.0542]
[1750715317079,14.40604538,141.7,141.69,7.0539]
[1750715317366,7.86855115,141.7,141.64,4.93852256]
[1750715317565,653.13749423,141.71,141.64,4.93852256]
[1750715317761,653.13749423,141.71,141.66,4.93852256]
[1750715317762,36.72,141.71,141.66,4.93852256]
[1750715318169,36.72,141.71,141.7,7.0534]
[1750715318668,43.7716,141.74,141.71,7.0526]
[1750715318867,51.12324286,141.74,141.68,4.93852256]
[1750715319059,48.19601679,141.74,141.66,4.93852256]
[1750715319459,7.0533,141.71,141.68,7.0541]
[1750715319661,43.25749423,141.74,141.66,4.93852256]
[1750715319868,4.93852256,141.73,141.66,4.93852256]
[1750715320059,7.0532,141.71,141.68,7.054]
[1750715321171,7.053,141.71,141.69,7.0539]
[1750715322473,7.053,141.71,141.68,7.0542]
[1750715322663,2.71988282,141.73,141.64,36.72]
[1750715322866,36.72,141.74,141.69,7.0536]
[1750715323167,7.0531,141.71,141.65,4.93852256]
[1750715323365,36.7,141.7,141.65,7.0557]
[1750715323668,43.7537,141.7,141.63,4.93852256]
[1750715323866,4.93852256,141.71,141.63,4.93852256]
[1750715324069,4.93852256,141.71,141.65,7.0557]
[1750715324276,7.0544,141.68,141.65,7.0557]
[1750715325265,43.7544,141.68,141.65,7.0557]
[1750715325759,7.0549,141.67,141.65,7.0557]
[1750715325968,36.7,141.68,141.65,7.0557]
[1750715326974,43.7547,141.68,141.65,7.0557]
[1750715327177,36.7,141.68,141.64,7.0561]
[1750715327474,5.95020242,141.67,141.61,7.33302256]
[1750715327672,36.7,141.68,141.59,4.93852256]
[1750715327673,5.95107199,141.66,141.59,4.93852256]
[1750715327874,4.93852256,141.67,141.59,4.93852256]
[1750715328086,7.056,141.65,141.62,7.0571]
[1750715328780,7.056,141.65,141.63,7.0569]
[1750715329580,7.0558,141.66,141.63,7.0569]
[1750715330076,4.93852256,141.67,141.62,7.0571]
[1750715330279,7.056,141.65,141.62,7.0571]
[1750715330780,7.056,141.65,141.63,7.0569]
[1750715332377,7.056,141.65,141.59,4.93852256]
[1750715332681,4.93852256,141.66,141.59,4.93852256]
[1750715332879,42.65350261,141.65,141.59,4.93852256]
[1750715333083,36.7,141.65,141.59,4.93852256]
[1750715333378,36.7,141.65,141.58,41.302]
[1750715333588,5.93722765,141.64,141.56,7.23912256]
[1750715333781,12.99432765,141.63,141.56,7.23912256]
[1750715333977,5.93722765,141.62,141.56,7.23912256]
[1750715334180,7.0571,141.63,141.56,7.23912256]
[1750715334381,5.93791311,141.62,141.6,7.0581]
[1750715334684,7.0571,141.63,141.6,7.0581]
[1750715336188,10.8771569,141.62,141.54,4.6739]
[1750715336387,42.65901915,141.61,141.54,4.6739]
[1750715336593,36.72,141.61,141.54,4.6739]
[1750715336886,4.93852256,141.6,141.56,7.0601]
[1750715337080,36.72,141.61,141.5,44.09902256]
[1750715337081,4.93852256,141.58,141.5,44.09902256]
[1750715337286,36.72,141.57,141.5,44.09902256]
[1750715337892,36.72,141.57,141.48,7.21992256]
[1750715337893,4.93852256,141.56,141.48,7.21992256]
[1750715338075,5.92296853,141.55,141.48,7.21992256]
[1750715338279,43.5575,141.57,141.48,7.21992256]
[1750715338480,5.92289937,141.56,141.5,4.93852256]
[1750715338690,36.72,141.57,141.5,4.93852256]
[1750715338995,36.72,141.57,141.55,7.0605]
[1750715339490,36.72,141.57,141.56,7.0603]
[1750715339990,36.72,141.57,141.5,7.26422256]
[1750715339991,36.72,141.57,141.54,7.0609]
[1750715340187,36.72,141.57,141.51,36.72]
[1750715340994,43.7798,141.57,141.54,7.061]
[1750715341783,7.0607,141.56,141.53,7.0615]
[1750715342684,7.0609,141.55,141.52,7.0621]
[1750715343079,36.72,141.57,141.52,7.0621]
[1750715343278,36.72,141.57,141.51,7.0627]
[1750715343279,10.83324019,141.56,141.51,7.0627]
[1750715343479,10.83324019,141.56,141.48,43.91992256]
[1750715343480,4.93852256,141.56,141.48,43.91992256]
[1750715343688,12.9561399,141.55,141.52,7.062]
[1750715343883,7.0611,141.55,141.52,7.062]
[1750715344194,36.72,141.57,141.5,4.93852256]
[1750715344379,114.42459423,141.61,141.52,4.93852256]
[1750715344380,41.63852256,141.6,141.52,4.93852256]
[1750715344576,5.89138372,141.59,141.52,41.63852256]
[1750715344785,36.7,141.63,141.61,7.0576]
[1750715345292,36.7,141.63,141.62,7.0574]
[1750715345689,36.7,141.63,141.58,2.2289]
[1750715345898,41.63852256,141.63,141.58,2.2289]
[1750715346787,48.69572256,141.63,141.6,7.0582]
[1750715347188,41.63852256,141.63,141.57,2.3194]
[1750715347390,7.0582,141.61,141.58,7.0591]
[1750715347593,41.63852256,141.63,141.57,2.3194]
[1750715347594,36.7,141.63,141.57,2.3194]
[1750715347889,7.0577,141.62,141.58,7.059]
[1750715348791,36.7,141.63,141.57,2.3194]
[1750715348984,36.7,141.63,141.57,7.25792256]
[1750715349289,36.7,141.63,141.61,7.0574]
[1750715349792,36.7,141.63,141.62,7.0574]
[1750715351593,36.7,141.63,141.57,7.25792256]
[1750715351789,36.7,141.63,141.57,2.3194]
[1750715352188,43.7571,141.63,141.6,7.0581]
[1750715352791,36.7,141.63,141.61,7.0579]
[1750715353198,43.7572,141.63,141.6,7.0582]
[1750715353688,43.7572,141.63,141.57,2.3194]
[1750715353689,7.0574,141.62,141.59,7.0586]
[1750715354090,36.7,141.63,141.57,2.3194]
[1750715354486,7.0575,141.62,141.59,7.0586]
[1750715354687,36.7,141.63,141.57,2.3194]
[1750715355098,7.0579,141.61,141.58,7.0591]
[1750715355291,36.7,141.63,141.57,2.3194]
[1750715355889,7.0582,141.61,141.58,7.0594]
[1750715356992,7.0586,141.6,141.57,7.0597]
[1750715357195,4.93852256,141.62,141.54,2.2289]
[1750715357496,7.0591,141.59,141.56,7.0601]
[1750715357696,36.7,141.59,141.54,2.2289]
[1750715358194,36.7,141.59,141.57,7.0596]
[1750715358588,36.7,141.59,141.54,2.2289]
[1750715358997,43.7577,141.62,141.59,7.0587]
[1750715359198,43.7577,141.62,141.55,4.93852256]
[1750715359696,36.7,141.62,141.55,4.93852256]
[1750715360394,36.7,141.62,141.61,7.0579]
[1750715363702,187.63852256,141.62,141.45,17.57903397]
[1750715363992,187.63852256,141.62,141.32,35.3604]
[1750715363993,18.02120645,141.61,141.52,4.93852256]
[1750715364192,36.7,141.6,141.57,7.0596]
[1750715364390,36.7,141.6,141.54,4.93852256]
[1750715365498,36.7,141.6,141.58,7.0593]
[1750715365904,43.7585,141.6,141.58,7.0593]
[1750715366398,43.7585,141.6,141.54,4.93852256]
[1750715366399,43.7585,141.6,141.57,7.0596]
[1750715367292,36.7,141.6,141.56,7.0603]
[1750715367493,5.93712035,141.59,141.56,7.0603]
[1750715367693,36.7,141.6,141.56,7.0603]
[1750715367895,7.0595,141.58,141.56,7.0603]
[1750715368099,7.0595,141.58,141.55,7.0605]
[1750715368592,36.7,141.6,141.54,4.93852256]
[1750715368796,36.7,141.63,141.54,43.93002256]
[1750715369000,5.93830383,141.62,141.54,43.93002256]
[1750715369303,12.99650383,141.61,141.54,43.93002256]
[1750715369599,7.0574,141.62,141.54,43.93002256]
[1750715369796,36.7,141.63,141.56,4.93852256]
[1750715369993,5.93938914,141.62,141.56,4.93852256]
[1750715370201,36.7,141.63,141.56,4.93852256]
[1750715370404,5.93984728,141.62,141.6,7.058]
[1750715370701,43.7571,141.63,141.6,7.058]
[1750715371201,5.94098314,141.62,141.6,7.058]
[1750715371394,43.7571,141.63,141.6,7.058]
[1750715371703,13.00060259,141.62,141.6,7.058]
[1750715371899,7.0575,141.62,141.59,7.0586]
[1750715372198,36.7,141.63,141.59,7.0586]
[1750715372502,13.00155661,141.62,141.59,7.0586]
[1750715372689,36.7,141.63,141.55,4.93852256]
[1750715372894,5.94482495,141.62,141.55,4.93852256]
[1750715373200,36.7,141.63,141.55,4.93852256]
[1750715373410,5.94509043,141.62,141.61,7.0578]
[1750715374503,37.02,141.64,141.62,7.0571]
[1750715374706,5.94596602,141.63,141.62,7.0571]
[1750715376002,44.0764,141.64,141.61,7.0576]
[1750715376208,7.0571,141.63,141.56,4.93852256]
[1750715376607,7.0571,141.63,141.6,7.058]
[1750715376811,7.0571,141.63,141.56,4.93852256]
[1750715377608,37.02,141.64,141.56,4.93852256]
[1750715377808,37.02,141.64,139.69,3.64495846]
[1750715377809,4.93852256,141.57,141.48,4.93852256]
[1750715378000,37.02,141.56,141.47,6.8122]
[1750715378307,4.93852256,141.55,141.47,6.8122]
[1750715378500,4.93852256,141.55,141.48,7.0641]
[1750715378703,41.95852256,141.56,141.48,4.93852256]
[1750715379005,37.02,141.56,141.48,4.93852256]
[1750715379602,37.02,141.56,141.49,7.0636]
[1750715379905,7.0626,141.52,141.49,7.0636]
[1750715380106,7.0626,141.52,141.48,4.93852256]
[1750715380403,7.0616,141.54,141.51,7.0626]
[1750715380609,41.95852256,141.56,141.48,4.93852256]
[1750715381004,44.6843772,141.56,141.5,7.0631]
[1750715381211,41.95852256,141.56,141.48,4.93852256]
[1750715382006,41.95852256,141.56,141.47,43.8322]
[1750715382308,7.063,141.51,141.48,7.064]
[1750715382609,37.02,141.56,141.47,6.8122]
[1750715382814,4.93852256,141.54,141.47,6.8122]
[1750715383310,7.0629,141.51,141.48,7.0641]
[1750715383705,7.0629,141.51,141.46,37.04]
[1750715383706,41.97852256,141.55,141.46,41.97852256]
[1750715383905,41.97852256,141.55,141.51,7.0628]
[1750715383906,7.0616,141.54,141.51,7.0628]
[1750715384306,4.93852256,141.57,141.53,7.0616]
[1750715384511,4.93852256,141.57,141.48,4.93852256]
[1750715384698,4.93852256,141.57,141.49,4.6149]
[1750715384903,11.99872256,141.57,141.49,4.6149]
[1750715385709,11.99872256,141.57,141.49,6.9758]
[1750715385913,7.0605,141.56,141.49,6.9758]
[1750715386818,4.93852256,141.57,141.49,6.9758]
[1750715387213,7.0606,141.56,141.53,7.0618]
[1750715387707,4.93852256,141.56,141.53,7.0618]
[1750715387911,11.99902256,141.56,141.53,7.0618]
[1750715388621,44.0996,141.58,141.49,6.9758]
[1750715388825,49.03812256,141.58,141.5,41.97852256]
[1750715389126,49.03812256,141.58,141.55,7.0605]
[1750715389620,37.04,141.58,141.5,41.97852256]
[1750715389925,37.04,141.58,141.56,7.06]
[1750715391924,7.0622,141.53,141.4,21.2036]
[1750715392126,4.93852256,141.53,141.44,9.73462256]
[1750715392825,37.04,141.54,141.46,4.93852256]
[1750715393327,44.1016,141.54,141.46,4.93852256]
[1750715393522,37.04,141.54,141.46,4.93852256]
[1750715393919,44.1015,141.54,141.51,7.0624]
[1750715394727,37.04,141.54,141.52,7.0622]
[1750715394928,7.0611,141.55,141.52,7.0622]
[1750715395832,7.0613,141.54,141.52,7.0622]
[1750715398130,7.0613,141.54,141.51,7.0625]
[1750715398430,4.93852256,141.56,141.51,7.0625]
[1750715398731,37.04,141.57,141.47,7.21932256]
[1750715398930,7.0611,141.55,141.47,7.21932256]
[1750715399133,4.93852256,141.56,141.47,2.2808]
[1750715399432,7.65736918,141.56,141.5,7.063]
[1750715399622,7.0612,141.55,141.47,2.2808]
[1750715399824,4.93852256,141.55,141.51,7.0625]
[1750715400334,7.0617,141.54,141.51,7.0625]
[1750715401435,7.0621,141.53,141.5,7.0629]
[1750715402630,37.04,141.57,141.47,2.2808]
[1750715402836,4.93852256,141.56,141.48,37.96]
[1750715403728,37.96,141.58,141.48,42.89852256]
[1750715403934,42.89852256,141.58,141.48,42.89852256]
[1750715404134,42.89852256,141.58,141.49,2.2262]
[1750715404936,7.0602,141.57,141.54,7.0613]
[1750715408633,37.96,141.58,141.56,7.0603]
[1750715411939,42.89852256,141.58,141.51,2.3412]
[1750715412642,37.96,141.58,141.51,2.3412]
[1750715412940,42.89852256,141.58,141.51,2.3412]
[1750715413334,7.0606,141.56,141.53,7.0618]
[1750715413639,37.96,141.58,141.51,2.3412]
[1750715413944,49.95812256,141.58,141.55,7.0607]
[1750715414441,7.0603,141.57,141.53,7.0615]
[1750715414641,37.96,141.58,141.51,2.3412]
[1750715414848,42.89852256,141.58,141.51,2.3412]
[1750715415037,49.95822256,141.58,141.55,7.0607]
[1750715417641,11.99762256,141.59,141.56,7.0601]
[1750715417839,49.95762256,141.59,141.51,2.3412]
[1750715418035,49.95762256,141.59,141.52,2.434]
[1750715418247,49.95762256,141.59,141.56,7.0599]
[1750715418642,37.96,141.59,141.52,2.434]
[1750715418950,37.96,141.59,141.57,7.0596]
[1750715419647,37.96,141.59,141.53,37.96]
[1750715420549,45.019,141.59,141.53,37.96]
[1750715421049,45.019,141.59,141.56,7.06]
[1750715422641,37.96,141.59,141.57,7.0596]
[1750715423744,4.93852256,141.62,141.54,4.93852256]
[1750715424049,4.93852256,141.62,141.54,7.24012256]
[1750715424240,4.93852256,141.62,141.6,7.058]
[1750715424652,37.96,141.63,141.54,7.24012256]
[1750715424854,37.96,141.63,141.61,7.0575]
[1750715426755,4.93852256,141.62,141.55,4.93852256]
[1750715427054,7.66661361,141.62,141.54,2.3016]
[1750715427257,4.93852256,141.62,141.56,7.0601]
[1750715427456,4.93852256,141.6,141.54,2.3016]
[1750715427652,37.96,141.59,141.52,2.434]
[1750715427955,45.0196,141.58,141.55,7.0605]
[1750715428157,45.0196,141.58,141.52,2.434]
[1750715428352,7.0599,141.57,141.52,2.434]
[1750715428654,37.96,141.58,141.52,2.434]
[1750715429152,45.0196,141.58,141.52,2.434]
[1750715429659,37.96,141.58,141.52,2.434]
[1750715430754,37.96,141.58,141.56,7.0601]
[1750715431658,37.96,141.58,141.57,7.0598]
[1750715431955,7.0587,141.6,141.57,7.0598]
[1750715432553,7.0587,141.6,141.52,2.434]
[1750715432554,7.0587,141.6,141.58,7.0593]
[1750715432857,7.0584,141.6,141.58,7.0593]
[1750715433654,45.0178,141.61,141.59,7.0588]
[1750715433860,37.96,141.61,141.54,37.64]
[1750715434353,37.96,141.61,141.6,7.0583]
[1750715436059,37.96,141.61,141.55,7.17522256]
[1750715437665,37.96,141.61,141.6,7.0583]
[1750715438062,37.96,141.61,141.55,7.17522256]
[1750715438359,4.93852256,141.63,141.55,7.17522256]
[1750715438663,7.058,141.61,141.55,7.17522256]
[1750715438961,7.058,141.61,141.59,7.0587]
[1750715439462,7.058,141.61,141.55,7.17522256]
[1750715439654,7.058,141.61,141.58,7.059]
[1750715439854,7.0584,141.6,141.58,7.059]
[1750715441659,7.6643097,141.63,141.55,2.2367]
[1750715441660,7.0589,141.59,141.55,2.2367]
[1750715441866,37.64,141.6,141.55,2.2367]
[1750715442061,7.0596,141.58,141.55,9.2971]
[1750715442260,37.64,141.6,141.55,7.0604]
[1750715442864,7.0591,141.59,141.56,7.0602]
[1750715446369,7.0594,141.58,141.56,7.0602]
[1750715447769,7.06,141.57,141.52,2.434]
[1750715448792,13.64468947,141.57,141.52,2.434]
[1750715448889,7.06,141.57,141.52,2.434]
[1750715449264,4.93852256,141.59,141.52,7.37252256]
[1750715449462,5.9510561,141.58,141.52,7.37252256]
[1750715449673,5.9510561,141.57,141.56,7.06]
[1750715452067,5.9510561,141.57,141.55,7.0606]
[1750715452267,5.9510561,141.56,141.55,7.0606]
[1750715454677,5.9510561,141.56,141.54,7.0611]
[1750715454877,7.0599,141.57,141.54,7.0611]
[1750715455079,44.22468947,141.6,141.55,7.0608]
[1750715455376,20.20258958,141.59,141.55,7.0608]
[1750715455576,8.67937755,141.58,141.55,7.0608]
[1750715455880,5.94785629,141.57,141.55,7.0608]
[1750715456079,5.94785629,141.56,141.55,7.0608]
[1750715456371,5.94785629,141.56,141.51,2.3412]
[1750715456579,5.94785629,141.55,141.49,4.93852256]
[1750715456772,37.64,141.56,141.48,42.2187]
[1750715456773,5.94785629,141.54,141.48,47.15722256]
[1750715456979,4.93852256,141.55,141.51,7.0626]
[1750715457280,7.0621,141.53,141.48,4.5787]
[1750715457479,7.0621,141.53,141.5,7.063]
[1750715457982,7.0624,141.52,141.5,7.063]
[1750715458683,7.0621,141.53,141.5,7.063]
[1750715459973,12.00062256,141.53,141.5,7.063]
[1750715460178,37.64,141.52,141.5,7.063]
[1750715460480,37.64,141.52,141.47,2.2521]
[1750715460880,37.64,141.52,141.46,4.93852256]
[1750715461483,37.64,141.52,141.5,7.063]
[1750715462584,37.64,141.52,141.49,7.0636]
[1750715462884,37.64,141.52,141.45,37.64]
[1750715463078,37.64,141.52,141.44,11.75732256]
[1750715463283,4.93852256,141.51,141.44,11.75732256]
[1750715463581,4.93852256,141.51,141.44,6.8188]
[1750715463582,5.9241996,141.5,141.44,6.8188]
[1750715463784,4.93852256,141.51,141.44,6.8188]
[1750715463971,7.0641,141.49,141.46,7.0651]
[1750715464174,4.93852256,141.51,141.46,7.0651]
[1750715464373,7.0646,141.48,141.45,7.0656]
[1750715464587,37.48,141.47,141.45,7.0656]
[1750715464885,37.48,141.47,141.41,4.93852256]
[1750715465085,44.5451,141.47,141.44,7.0659]
[1750715465389,37.48,141.47,141.44,7.0659]
[1750715465686,42.41852256,141.47,141.43,7.0665]
[1750715466287,7.0656,141.46,141.43,7.0665]
[1750715466580,42.41852256,141.47,141.42,7.0671]
[1750715466784,7.0661,141.45,141.42,7.0671]
[1750715466984,7.0661,141.45,141.37,4.93852256]
[1750715466985,4.93852256,141.45,141.37,4.93852256]
[1750715467283,4.93852256,141.41,141.32,4.93852256]
[1750715467485,4.93852256,141.39,141.32,4.93852256]
[1750715467788,37.48,141.38,141.34,7.071]
[1750715468082,37.48,141.38,141.3,2.2552]
[1750715468083,37.48,141.38,141.33,7.0718]
[1750715468287,7.0703,141.37,141.33,7.0718]
[1750715468583,37.48,141.38,141.3,7.19372256]
[1750715468781,37.48,141.38,141.29,4.5295]
[1750715468782,7.0714,141.34,141.29,4.5295]
[1750715468982,37.48,141.34,141.29,4.5295]
[1750715469290,7.0721,141.33,141.29,7.0736]
[1750715469582,7.0721,141.33,141.26,44.84372256]
[1750715469886,12.01062256,141.33,141.26,39.9052]
[1750715470282,12.01062256,141.33,141.3,7.0733]
[1750715472585,7.0724,141.32,141.28,7.074]
[1750715473199,7.0728,141.31,141.28,7.074]
[1750715473395,7.0728,141.31,141.27,7.0746]
[1750715473898,37.52,141.3,141.27,7.0746]
[1750715475890,37.52,141.3,141.23,46.96802256]
[1750715475891,37.52,141.3,141.28,7.0742]
[1750715481193,42.45852256,141.3,141.26,7.075]
[1750715481995,7.0742,141.29,141.25,7.0756]
[1750715484693,4.93852256,141.28,141.25,7.0756]
[1750715485295,12.01272256,141.29,141.26,7.0752]
[1750715496109,12.01272256,141.29,141.21,4.93852256]
[1750715496110,12.01272256,141.29,141.27,7.0748]
[1750715496605,12.01272256,141.29,141.21,4.93852256]
[1750715497806,49.53212256,141.3,141.27,7.0748]
[1750715498497,7.0739,141.29,141.27,7.0748]
[1750715502107,42.25852256,141.34,141.27,4.93852256]
[1750715502310,42.25852256,141.34,141.28,4.6836]
[1750715502517,42.25852256,141.34,141.28,6.9397]
[1750715502906,42.25852256,141.34,141.32,7.072]
[1750715504505,49.32982256,141.34,141.32,7.072]
[1750715504905,49.32982256,141.34,141.28,6.9397]
[1750715504906,37.32,141.34,141.33,7.0718]
[1750715507214,43.08623261,141.34,141.33,7.0718]
[1750715507610,43.08623261,141.34,141.32,7.0721]
[1750715507913,37.32,141.34,141.32,7.0721]
[1750715508117,5.80270029,141.33,141.32,7.0721]
[1750715509619,8.55717801,141.33,141.31,7.0727]
[1750715509810,5.80270029,141.32,141.31,7.0727]
[1750715511319,8.56636361,141.32,141.31,7.0727]
[1750715511519,8.56636361,141.32,141.3,7.0731]
[1750715511720,5.80270029,141.31,141.3,7.0731]
[1750715513322,8.57012188,141.31,141.3,7.0731]
[1750715514922,8.57012188,141.31,141.29,7.0736]
[1750715515225,5.80270029,141.3,141.29,7.0736]
[1750715519525,12.01052256,141.33,141.3,7.073]
[1750715519730,5.84446597,141.32,141.3,7.073]
[1750715519924,5.84446597,141.31,141.3,7.073]
[1750715521119,5.84446597,141.31,141.29,7.0736]
[1750715521433,5.8444134,141.3,141.29,7.0736]
[1750715521617,43.1444134,141.3,141.29,7.0736]